bitfinex/quotes_SOLUSD_20250403
["timestamp","ask_amount","ask_price","bid_price","bid_amount"]
[1743712793608,17.07676325,115.47,115.43,25.73956325]
[1743712793901,25.73706325,115.47,115.43,25.73956325]
[1743712794215,25.73706325,115.47,115.43,8.6628]
[1743712795885,17.07676325,115.47,115.43,25.73956325]
[1743712801405,17.07676325,115.47,115.44,0.28432314]
[1743712802015,17.07676325,115.47,115.44,8.94622314]
[1743712804310,25.73706325,115.47,115.43,25.73956325]
[1743712804483,17.07676325,115.46,115.43,8.6628]
[1743712805014,17.07676325,115.44,115.41,8.6647]
[1743712805316,8.6603,115.47,115.41,47.40336325]
[1743712805483,17.07676325,115.46,115.43,0.28432314]
[1743712805683,17.07676325,115.47,115.43,0.28432314]
[1743712805887,17.07676325,115.47,115.43,17.36108639]
[1743712806291,17.07676325,115.47,115.44,8.6625]
[1743712806989,17.07676325,115.48,115.44,8.6625]
[1743712807521,17.07676325,115.47,115.44,8.6625]
[1743712808531,17.07676325,115.45,115.41,8.6647]
[1743712808813,17.07676325,115.43,115.4,8.665]
[1743712809800,17.07676325,115.42,115.39,8.95052314]
[1743712810000,17.07676325,115.42,115.39,8.6662]
[1743712810203,17.07676325,115.43,115.39,8.6662]
[1743712810517,17.07676325,115.44,115.39,47.40856325]
[1743712811116,17.07676325,115.43,115.39,30.3318]
[1743712813607,17.07676325,115.43,115.39,47.40856325]
[1743712814513,0.14216157,115.45,115.39,30.3318]
[1743712814810,17.07676325,115.44,115.39,47.40856325]
[1743712818497,17.07676325,115.45,115.41,8.6647]
[1743712818695,25.73866325,115.45,115.41,8.6647]
[1743712819319,8.6619,115.45,115.41,8.6647]
[1743712819520,17.07676325,115.45,115.41,8.6647]
[1743712820716,17.07676325,115.43,115.38,8.667]
[1743712820917,17.07676325,115.41,115.36,25.74526325]
[1743712821220,17.07676325,115.4,115.36,8.6685]
[1743712821389,17.07676325,115.41,115.36,25.74526325]
[1743712821595,17.07676325,115.42,115.37,17.36108639]
[1743712822721,25.74116325,115.42,115.38,8.667]
[1743712824009,25.74116325,115.42,115.37,26.02848639]
[1743712824214,17.07676325,115.41,115.37,8.95172314]
[1743712824413,17.07676325,115.41,115.37,8.80956157]
[1743712824917,25.74196325,115.41,115.37,8.80956157]
[1743712828031,17.07676325,115.41,115.37,8.80956157]
[1743712828329,25.74146325,115.41,115.37,8.80956157]
[1743712828827,17.07676325,115.41,115.37,8.80956157]
[1743712829004,25.74156325,115.41,115.37,8.80956157]
[1743712830223,17.07676325,115.41,115.37,8.80956157]
[1743712832334,25.74146325,115.41,115.37,8.80956157]
[1743712833412,25.74146325,115.41,115.36,25.88702482]
[1743712833618,17.07676325,115.4,115.36,8.81026157]
[1743712836924,25.74226325,115.4,115.36,8.81026157]
[1743712837107,17.07676325,115.4,115.36,8.81026157]
[1743712837315,17.07676325,115.4,115.36,25.88702482]
[1743712839431,17.07676325,115.41,115.37,17.36108639]
[1743712839808,17.07676325,115.42,115.37,17.36108639]
[1743712840332,17.07676325,115.41,115.37,17.36108639]
[1743712840735,17.07676325,115.41,115.38,8.667]
[1743712845731,25.74096325,115.42,115.38,8.667]
[1743712850842,8.1784,115.46,115.39,18.933972]
[1743712851029,16.8397,115.46,115.4,17.07676325]
[1743712851343,17.07676325,115.45,115.4,17.07676325]
[1743712851636,25.73866325,115.45,115.41,8.6647]
[1743712853619,17.07676325,115.44,115.41,8.6647]
[1743712854130,17.07676325,115.43,115.4,8.6651]
[1743712855341,17.07676325,115.43,115.39,33.40266325]
[1743712855845,17.07676325,115.43,115.39,16.3259]
[1743712856937,17.07676325,115.44,115.39,33.40266325]
[1743712858851,17.07676325,115.44,115.39,55.06826325]
[1743712859230,17.07676325,115.44,115.4,17.36108639]
[1743712859427,25.73886325,115.45,115.4,17.36108639]
[1743712859845,25.73886325,115.45,115.41,8.6647]
[1743712860924,17.07676325,115.44,115.41,8.6647]
[1743712862847,16.8396,115.46,115.41,8.6647]
[1743712863046,17.07676325,115.45,115.41,25.74146325]
[1743712863442,8.1507,115.49,115.43,17.07676325]
[1743712863751,17.07676325,115.49,115.45,17.07676325]
[1743712863939,17.07676325,115.49,115.44,17.36108639]
[1743712864456,25.73556325,115.49,115.45,8.6617]
[1743712868147,17.07676325,115.5,115.45,25.73846325]
[1743712868556,17.07676325,115.5,115.46,0.28432314]
[1743712868859,17.07676325,115.5,115.46,17.36108639]
[1743712869252,17.07676325,115.51,115.46,17.36108639]
[1743712869643,7.6958,115.52,115.47,25.73696325]
[1743712869847,17.07676325,115.52,115.47,25.73696325]
[1743712870850,25.73326325,115.52,115.47,25.73696325]
[1743712871463,17.07676325,115.52,115.48,26.01988639]
[1743712871652,25.73296325,115.53,115.48,26.01988639]
[1743712872665,25.73256325,115.53,115.48,26.01988639]
[1743712873270,8.6558,115.53,115.48,26.01988639]
[1743712873563,17.07676325,115.53,115.48,26.01988639]
[1743712873755,8.655,115.54,115.49,17.07676325]
[1743712873964,25.73176325,115.54,115.49,17.07676325]
[1743712874467,25.73136325,115.55,115.5,17.07676325]
[1743712874656,25.73136325,115.55,115.51,17.07676325]
[1743712874972,17.07676325,115.55,115.51,17.07676325]
[1743712875467,17.07676325,115.55,115.5,17.36108639]
[1743712875867,17.07676325,115.55,115.51,25.73396325]
[1743712876163,25.73056325,115.56,115.51,25.73396325]
[1743712877057,17.07676325,115.56,115.51,25.73396325]
[1743712877766,0.02888387,115.58,115.55,8.6542]
[1743712879167,25.72816325,115.59,115.55,0.28432314]
[1743712879675,8.6514,115.59,115.55,17.36108639]
[1743712879877,17.07676325,115.59,115.55,8.93822314]
[1743712880449,17.07676325,115.58,115.55,8.93822314]
[1743712881675,25.72816325,115.59,115.55,8.93822314]
[1743712883775,0.14216157,115.63,115.58,17.07676325]
[1743712884092,8.79036157,115.63,115.58,17.07676325]
[1743712884377,25.86712482,115.63,115.58,17.07676325]
[1743712884564,17.07676325,115.62,115.58,17.07676325]
[1743712885280,17.07676325,115.62,115.57,43.07676325]
[1743712885882,8.6497,115.61,115.57,51.72936325]
[1743712886383,17.07676325,115.6,115.56,25.72986325]
[1743712886554,17.07676325,115.58,115.55,9.48302314]
[1743712886749,17.07676325,115.58,115.54,8.6546]
[1743712886953,17.07676325,115.56,115.52,28.83564886]
[1743712887156,17.07676325,115.56,115.52,45.91241211]
[1743712887581,17.07676325,115.56,115.53,0.28432314]
[1743712887978,17.07676325,115.57,115.53,8.6554]
[1743712888561,17.07676325,115.56,115.52,10.186]
[1743712889983,25.73026325,115.56,115.52,10.186]
[1743712890677,17.07676325,115.55,115.51,26.01798639]
[1743712890883,17.07676325,115.55,115.51,8.94122314]
[1743712891458,17.07676325,115.55,115.51,8.79906157]
[1743712891779,25.73106325,115.55,115.51,8.79906157]
[1743712892081,17.07676325,115.55,115.51,25.87582482]
[1743712897078,25.73126325,115.55,115.51,8.6569]
[1743712897666,17.07676325,115.55,115.51,25.73366325]
[1743712899685,25.73036325,115.56,115.51,25.73366325]
[1743712901092,17.07676325,115.56,115.51,25.73366325]
[1743712902097,17.07676325,115.56,115.52,17.07676325]
[1743712902470,8.653,115.57,115.52,17.07676325]
[1743712902974,25.72976325,115.57,115.52,17.07676325]
[1743712903291,17.07676325,115.56,115.52,25.73266325]
[1743712904283,17.07676325,115.56,115.52,8.6559]
[1743712904766,25.73036325,115.56,115.52,25.73266325]
[1743712906070,17.07676325,115.56,115.52,25.73266325]
[1743712906385,25.73036325,115.56,115.52,25.73266325]
[1743712908286,25.73036325,115.56,115.52,0.28432314]
[1743712908494,25.73046325,115.56,115.51,25.73396325]
[1743712911895,156.0,115.62,115.55,17.07676325]
[1743712912197,156.0,115.62,115.56,17.07676325]
[1743712912198,17.21892482,115.61,115.56,17.07676325]
[1743712912393,17.07676325,115.61,115.56,17.07676325]
[1743712913400,17.07676325,115.61,115.57,8.6527]
[1743712914508,8.6492,115.62,115.57,25.72946325]
[1743712914808,17.21892482,115.62,115.57,25.72946325]
[1743712915676,25.86792482,115.62,115.57,25.72946325]
[1743712916004,17.21892482,115.62,115.57,25.72946325]
[1743712916180,17.21892482,115.62,115.57,8.6527]
[1743712916504,17.07676325,115.61,115.57,25.72946325]
[1743712916805,17.21892482,115.62,115.57,25.72946325]
[1743712918510,25.86792482,115.62,115.57,25.72946325]
[1743712922889,16.57888387,115.66,115.58,49.26788639]
[1743712923086,16.57888387,115.66,115.61,17.07676325]
[1743712923282,25.00914712,115.66,115.61,17.07676325]
[1743712923592,0.02888387,115.66,115.62,17.07676325]
[1743712924917,0.02888387,115.66,115.65,17.07676325]
[1743712925082,0.02888387,115.66,115.65,44.65743525]
[1743712925282,0.02888387,115.66,115.65,25.72346325]
[1743712931503,0.02888387,115.66,115.65,17.07676325]
[1743712933802,0.02888387,115.66,115.64,8.6471]
[1743712934001,0.02888387,115.66,115.65,17.07676325]
[1743712935113,0.02888387,115.66,115.63,8.6479]
[1743712935295,17.10564712,115.66,115.62,25.72536325]
[1743712936203,8.67498387,115.66,115.62,25.72536325]
[1743712937301,0.02888387,115.66,115.64,17.07676325]
[1743712938222,0.02888387,115.66,115.65,8.6467]
[1743712939623,0.02888387,115.66,115.64,25.72396325]
[1743712939826,27.29666325,115.69,115.64,25.72396325]
[1743712940310,17.07676325,115.68,115.64,25.72396325]
[1743712940933,25.72176325,115.68,115.64,25.72396325]
[1743712943203,17.07676325,115.68,115.64,25.72396325]
[1743712943523,17.07676325,115.69,115.64,30.266]
[1743712943821,17.07676325,115.73,115.68,17.07676325]
[1743712943994,10.1666,115.75,115.7,17.07676325]
[1743712944422,27.24336325,115.75,115.7,17.07676325]
[1743712945204,27.24336325,115.75,115.7,25.71946325]
[1743712947540,1.527,115.75,115.71,17.07676325]
[1743712947829,0.02888387,115.76,115.72,17.07676325]
[1743712948030,17.10564712,115.76,115.72,17.07676325]
[1743712948510,17.10564712,115.76,115.71,17.07676325]
[1743712948713,25.74434712,115.76,115.71,17.07676325]
[1743712949210,25.74434712,115.76,115.71,25.71846325]
[1743712949523,8.66758387,115.76,115.71,25.71846325]
[1743712949720,25.74434712,115.76,115.71,25.71846325]
[1743712951811,17.07676325,115.75,115.7,27.25286325]
[1743712952013,8.66758387,115.76,115.7,18.61006325]
[1743712952014,17.07676325,115.74,115.7,18.61006325]
[1743712952213,30.26398387,115.76,115.7,27.25296325]
[1743712952414,17.07676325,115.75,115.7,27.25296325]
[1743712952614,17.07676325,115.75,115.71,17.07676325]
[1743712954316,25.71546325,115.76,115.71,25.71846325]
[1743712954630,8.6387,115.76,115.71,25.71846325]
[1743712955025,28.6381,115.77,115.72,17.07676325]
[1743712955225,17.07676325,115.78,115.73,17.07676325]
[1743712955531,17.07676325,115.78,115.74,17.07676325]
[1743712956438,8.6378,115.77,115.73,33.33736325]
[1743712957734,17.07676325,115.75,115.71,17.07676325]
[1743712958813,25.71646325,115.75,115.71,25.71866325]
[1743712960638,25.71646325,115.75,115.71,8.6419]
[1743712961026,25.71646325,115.75,115.71,25.71866325]
[1743712961634,17.07676325,115.75,115.71,25.71866325]
[1743712961836,25.71566325,115.76,115.72,17.07676325]
[1743712962426,25.71566325,115.76,115.71,25.71866325]
[1743712963334,25.71566325,115.76,115.72,17.07676325]
[1743712965317,17.07676325,115.75,115.71,25.71866325]
[1743712967240,25.71616325,115.75,115.71,8.6419]
[1743712967435,17.07676325,115.75,115.71,25.71866325]
[1743712967947,17.07676325,115.75,115.71,8.6419]
[1743712968742,25.71616325,115.75,115.71,8.6419]
[1743712969046,17.07676325,115.74,115.71,8.6419]
[1743712969247,25.71616325,115.75,115.71,8.6419]
[1743712971634,17.07676325,115.75,115.71,25.71866325]
[1743712972361,25.71566325,115.76,115.71,25.71866325]
[1743712972531,17.07676325,115.75,115.71,25.71866325]
[1743712977762,25.71566325,115.76,115.71,25.71866325]
[1743712978058,8.6389,115.76,115.71,25.71866325]
[1743712978358,25.71566325,115.76,115.71,25.71866325]
[1743712980043,17.07676325,115.76,115.73,8.6408]
[1743712980648,25.85712482,115.77,115.73,8.6408]
[1743712981264,8.78036157,115.77,115.73,8.6408]
[1743712981562,17.07676325,115.76,115.73,8.6408]
[1743712981954,17.07676325,115.76,115.72,8.6411]
[1743712982149,17.07676325,115.75,115.72,8.6411]
[1743712984870,25.71546325,115.76,115.72,8.6411]
[1743712986374,17.07676325,115.76,115.72,8.6411]
[1743712986870,10.2944,115.78,115.72,25.71786325]
[1743712987164,17.07676325,115.77,115.72,25.71786325]
[1743712987748,8.77886157,115.79,115.73,17.07676325]
[1743712987949,17.07676325,115.78,115.73,17.07676325]
[1743712988362,17.07676325,115.77,115.72,38.68056325]
[1743712989470,17.07676325,115.77,115.73,8.6404]
[1743712990174,25.71456325,115.77,115.73,8.6404]
[1743712990469,17.07676325,115.76,115.73,8.6404]
[1743712992069,17.07676325,115.77,115.73,8.6404]
[1743712992969,0.14216157,115.79,115.73,47.31916325]
[1743712993167,8.6359,115.8,115.74,17.07676325]
[1743712993378,17.07676325,115.79,115.74,18.69056325]
[1743712994071,17.07676325,115.79,115.75,8.6393]
[1743712994367,17.07676325,115.8,115.75,25.71606325]
[1743712995271,17.07676325,115.79,115.75,8.6393]
[1743712995975,10.40666157,115.81,115.75,25.71606325]
[1743712996175,17.07676325,115.79,115.75,8.6393]
[1743712997253,17.07676325,115.76,115.71,20.26434886]
[1743712997573,17.07676325,115.76,115.71,37.34111211]
[1743712998264,17.07676325,115.77,115.72,25.71826325]
[1743712998478,17.07676325,115.78,115.73,36.01073525]
[1743712998970,17.07676325,115.77,115.73,18.933972]
[1743712999561,17.07676325,115.77,115.72,25.71826325]
[1743712999759,0.14216157,115.78,115.71,1.6147]
[1743712999760,17.07676325,115.75,115.71,10.2565]
[1743713000265,17.07676325,115.75,115.71,27.33326325]
[1743713000577,17.07676325,115.76,115.71,27.33326325]
[1743713001281,17.07676325,115.75,115.71,27.33326325]
[1743713001775,25.71556325,115.76,115.71,27.33326325]
[1743713002179,17.07676325,115.76,115.71,27.33326325]
[1743713002574,25.71486325,115.77,115.72,17.07676325]
[1743713003578,17.07676325,115.78,115.73,25.71756325]
[1743713004474,17.07676325,115.78,115.74,7.62]
[1743713005797,25.71406325,115.78,115.74,7.62]
[1743713006398,25.71406325,115.78,115.74,16.2598]
[1743713006601,8.6366,115.79,115.74,16.2598]
[1743713006881,17.07676325,115.78,115.74,16.2598]
[1743713007081,17.07676325,115.79,115.74,33.33656325]
[1743713007588,17.07676325,115.78,115.74,16.2598]
[1743713008785,17.07676325,115.81,115.76,17.07676325]
[1743713009482,17.07676325,115.8,115.75,36.01073525]
[1743713010187,17.07676325,115.8,115.76,8.6385]
[1743713011167,17.07676325,115.8,115.76,25.71526325]
[1743713011780,17.07676325,115.8,115.76,8.6385]
[1743713013287,17.07676325,115.8,115.76,25.71526325]
[1743713015390,8.6352,115.81,115.77,18.933972]
[1743713015391,17.07676325,115.81,115.77,18.933972]
[1743713015577,17.07676325,115.81,115.77,36.01073525]
[1743713015964,17.07676325,115.82,115.77,36.01073525]
[1743713016165,17.07676325,115.82,115.78,8.637]
[1743713018668,25.71086325,115.82,115.78,8.637]
[1743713018871,17.07676325,115.82,115.78,8.637]
[1743713019409,8.6336,115.83,115.78,8.637]
[1743713019581,17.07676325,115.82,115.78,8.637]
[1743713020482,25.71096325,115.82,115.78,8.637]
[1743713021090,17.07676325,115.81,115.78,8.637]
[1743713021274,17.07676325,115.81,115.77,27.571372]
[1743713023574,17.07676325,115.81,115.77,44.64813525]
[1743713025088,17.07676325,115.79,115.76,8.638]
[1743713026396,25.71226325,115.8,115.76,8.638]
[1743713026606,17.07676325,115.8,115.76,8.638]
[1743713029698,17.07676325,115.8,115.76,25.71476325]
[1743713030388,17.07676325,115.8,115.76,8.638]
[1743713030569,17.07676325,115.81,115.76,25.71476325]
[1743713031474,17.07676325,115.81,115.77,36.01073525]
[1743713032703,8.6344,115.82,115.77,36.01073525]
[1743713032876,17.07676325,115.81,115.77,36.01073525]
[1743713033079,17.07676325,115.81,115.76,25.71476325]
[1743713033279,25.71156325,115.81,115.76,25.71476325]
[1743713034979,17.07676325,115.81,115.76,25.71476325]
[1743713035419,25.71156325,115.81,115.76,25.71476325]
[1743713035705,17.07676325,115.8,115.76,8.638]
[1743713037906,17.07676325,115.8,115.76,25.71476325]
[1743713040705,17.07676325,115.8,115.76,8.638]
[1743713041089,17.07676325,115.78,115.75,10.1409]
[1743713041399,17.07676325,115.77,115.75,8.6387]
[1743713042305,17.07676325,115.77,115.73,48.134872]
[1743713042490,17.07676325,115.77,115.74,8.64]
[1743713045424,17.07676325,115.75,115.69,7.95964165]
[1743713045589,17.07676325,115.71,115.69,10.2347]
[1743713045910,6.97383839,115.89,115.79,26.0]
[1743713046216,43.21857287,115.95,115.79,26.0]
[1743713046217,17.07676325,115.87,115.82,17.07676325]
[1743713046411,92.72793729,115.92,115.81,18.933972]
[1743713046412,17.07676325,115.85,115.81,18.933972]
[1743713046620,17.07676325,115.85,115.81,27.568172]
[1743713047221,17.07676325,115.85,115.81,18.933972]
[1743713048491,8.6307,115.87,115.81,18.933972]
[1743713048686,17.07676325,115.84,115.78,16.2768]
[1743713048910,17.07676325,115.84,115.79,18.933972]
[1743713049253,17.07676325,115.84,115.79,36.01073525]
[1743713049705,26.44205577,115.85,115.79,45.37602777]
[1743713050012,26.44205577,115.84,115.79,45.37602777]
[1743713052119,26.44205577,115.84,115.79,54.01222777]
[1743713052624,8.6317,115.86,115.79,54.01222777]
[1743713052827,26.44205577,115.84,115.79,54.01222777]
[1743713054011,26.44205577,115.85,115.8,26.44205577]
[1743713054417,26.44205577,115.85,115.79,27.570172]
[1743713054418,26.44205577,115.85,115.79,54.01222777]
[1743713055345,35.07405577,115.85,115.8,26.44205577]
[1743713055925,136.14216157,115.89,115.82,26.44205577]
[1743713055926,35.07235577,115.87,115.82,26.44205577]
[1743713056130,35.07235577,115.87,115.81,45.37602777]
[1743713056131,26.44205577,115.86,115.81,45.37602777]
[1743713057012,26.44205577,115.85,115.81,45.37602777]
[1743713057513,26.44205577,115.85,115.81,54.01062777]
[1743713058032,26.44205577,115.84,115.8,18.933972]
[1743713059731,26.44205577,115.84,115.8,27.569472]
[1743713060133,35.07465577,115.84,115.8,27.569472]
[1743713061135,35.07465577,115.84,115.8,18.933972]
[1743713061625,26.44205577,115.83,115.8,18.933972]
[1743713065038,26.44205577,115.81,115.76,16.72721005]
[1743713065226,26.44205577,115.79,115.75,8.639]
[1743713065421,26.44205577,115.79,115.76,18.933972]
[1743713066227,35.07785577,115.8,115.76,27.28814886]
[1743713066743,26.44205577,115.8,115.76,27.28814886]
[1743713067242,35.07755577,115.8,115.76,18.64964886]
[1743713067452,21.5833,115.83,115.76,27.28814886]
[1743713067660,26.44205577,115.8,115.76,27.28814886]
[1743713069352,35.07765577,115.8,115.76,27.28814886]
[1743713070030,26.44205577,115.8,115.76,27.28814886]
[1743713071159,26.44205577,115.78,115.74,26.44205577]
[1743713071326,26.44205577,115.78,115.74,27.28964886]
[1743713073856,26.44205577,115.78,115.74,53.73170463]
[1743713074756,26.44205577,115.78,115.74,27.28964886]
[1743713076741,1.5936,115.83,115.75,18.933972]
[1743713076947,26.44205577,115.82,115.78,18.933972]
[1743713077850,16.92995111,115.82,115.78,18.933972]
[1743713078349,25.56405111,115.82,115.78,27.570772]
[1743713078750,16.92995111,115.81,115.78,8.6368]
[1743713078937,16.92995111,115.81,115.77,27.28704886]
[1743713079645,30.2193,115.82,115.76,7.6]
[1743713079852,26.46494865,115.79,115.75,27.28844886]
[1743713080227,30.2193,115.82,115.75,27.28844886]
[1743713080425,26.46494865,115.79,115.75,27.28844886]
[1743713080653,35.10094865,115.8,115.75,53.75339751]
[1743713089761,26.46494865,115.81,115.76,45.39892065]
[1743713089967,26.46494865,115.82,115.77,26.46494865]
[1743713091150,26.46494865,115.81,115.76,45.39892065]
[1743713092767,26.46494865,115.81,115.77,8.6378]
[1743713093564,35.09974865,115.81,115.77,8.6378]
[1743713093777,26.46494865,115.8,115.75,26.46494865]
[1743713094672,26.46494865,115.8,115.75,35.10374865]
[1743713095166,35.10084865,115.8,115.75,35.10374865]
[1743713095351,26.46494865,115.8,115.76,26.46494865]
[1743713095550,26.46494865,115.81,115.76,26.46494865]
[1743713096372,26.46494865,115.8,115.75,35.10374865]
[1743713096672,26.46494865,115.8,115.75,56.70194865]
[1743713098474,35.10004865,115.81,115.76,26.46494865]
[1743713098674,35.10004865,115.81,115.77,8.6378]
[1743713098876,26.46494865,115.81,115.77,8.6378]
[1743713100478,26.46494865,115.82,115.78,18.933972]
[1743713100678,26.46494865,115.83,115.78,45.39892065]
[1743713100881,26.46494865,115.83,115.79,8.6363]
[1743713101662,25.55584022,115.85,115.8,16.92364022]
[1743713101877,16.92364022,115.85,115.81,16.92364022]
[1743713102600,16.92364022,115.85,115.8,35.85761222]
[1743713102802,25.55554022,115.85,115.81,8.6348]
[1743713103097,16.92364022,115.84,115.81,8.6348]
[1743713103288,16.92364022,115.82,115.79,8.6359]
[1743713103490,16.92364022,115.81,115.77,16.92364022]
[1743713103696,26.45631312,115.81,115.77,53.88592355]
[1743713104088,26.45631312,115.81,115.77,27.42961043]
[1743713104501,26.45631312,115.81,115.77,53.88592355]
[1743713105480,26.45631312,115.79,115.75,28.06871312]
[1743713105898,26.45631312,115.79,115.75,1.6124]
[1743713106297,26.45631312,115.79,115.75,28.06871312]
[1743713106483,26.45631312,115.79,115.75,36.70751312]
[1743713107193,26.45631312,115.8,115.75,36.70751312]
[1743713107393,8.6346,115.82,115.75,36.70751312]
[1743713107617,26.45631312,115.79,115.75,36.70751312]
[1743713108404,35.09271312,115.79,115.75,8.6388]
[1743713108788,26.45631312,115.79,115.75,8.6388]
[1743713109199,26.45631312,115.79,115.75,35.09511312]
[1743713109596,26.45631312,115.8,115.75,35.09511312]
[1743713110783,26.45631312,115.8,115.75,56.69331312]
[1743713112701,26.45631312,115.81,115.77,26.45631312]
[1743713112902,26.45631312,115.83,115.79,26.74063626]
[1743713113096,26.45631312,115.84,115.8,26.45631312]
[1743713113312,26.45631312,115.84,115.79,26.74063626]
[1743713113480,8.6313,115.86,115.8,18.64964886]
[1743713113685,26.45631312,115.86,115.81,26.45631312]
[1743713113990,26.45631312,115.85,115.8,45.10596198]
[1743713114511,26.45631312,115.85,115.81,26.74063626]
[1743713114808,26.45631312,115.86,115.82,8.634]
[1743713115986,26.45631312,115.87,115.82,35.09031312]
[1743713116305,26.45631312,115.89,115.84,45.39028512]
[1743713116613,8.6277,115.91,115.85,26.45631312]
[1743713116797,26.45631312,115.9,115.86,8.6311]
[1743713117206,8.6277,115.91,115.86,8.6311]
[1743713117406,26.45631312,115.9,115.86,8.6311]
[1743713118388,8.6277,115.91,115.86,35.08741312]
[1743713118710,26.45631312,115.9,115.86,35.08741312]
[1743713119802,35.08461312,115.9,115.86,8.6311]
[1743713123512,8.6273,115.91,115.86,8.6311]
[1743713123812,26.45631312,115.91,115.87,18.933972]
[1743713124208,20.0,115.95,115.89,26.45631312]
[1743713124411,26.45631312,115.95,115.9,26.45631312]
[1743713124708,35.08071312,115.95,115.9,26.45631312]
[1743713125095,26.45631312,115.96,115.92,26.45631312]
[1743713125501,8.6229,115.97,115.91,45.39028512]
[1743713125701,35.08041312,115.96,115.91,54.01708512]
[1743713125902,26.45631312,115.95,115.91,27.560772]
[1743713126297,26.45631312,115.93,115.89,34.05631312]
[1743713126618,26.45631312,115.93,115.89,42.68471312]
[1743713127211,26.45631312,115.94,115.9,45.39028512]
[1743713127917,35.08121312,115.95,115.9,54.01788512]
[1743713128696,8.6249,115.95,115.9,54.01788512]
[1743713128904,15.2338,115.97,115.91,26.45631312]
[1743713128905,35.08031312,115.96,115.91,26.45631312]
[1743713129311,26.45631312,115.95,115.9,54.01788512]
[1743713130418,35.08121312,115.95,115.9,54.01788512]
[1743713131910,39.09127254,115.99,115.9,54.01788512]
[1743713131911,41.06831312,115.99,115.94,45.39028512]
[1743713132120,49.68981312,115.99,115.95,26.45631312]
[1743713132312,41.06831312,115.99,115.95,26.45631312]
[1743713132493,14.612,115.99,115.95,26.45631312]
[1743713132895,14.612,115.99,115.96,18.933972]
[1743713133101,14.612,115.99,115.96,26.74063626]
[1743713133299,14.612,115.99,115.98,45.39028512]
[1743713133717,14.612,115.99,115.97,34.87214886]
[1743713134218,14.612,115.99,115.97,16.2225]
[1743713134519,14.612,115.99,115.98,18.64964886]
[1743713135009,14.612,115.99,115.97,34.87214886]
[1743713136609,14.612,115.99,115.97,61.32846198]
[1743713136810,14.612,115.99,115.98,18.64964886]
[1743713137012,14.612,115.99,115.98,45.10596198]
[1743713137506,14.612,115.99,115.98,45.39028512]
[1743713138407,14.612,115.99,115.98,54.01238512]
[1743713139509,14.612,115.99,115.98,27.27174886]
[1743713141820,14.612,115.99,115.98,54.01238512]
[1743713142625,14.612,115.99,115.98,35.07841312]
[1743713143123,14.612,115.99,115.98,54.01238512]
[1743713145128,14.612,115.99,115.98,27.556072]
[1743713146129,14.612,115.99,115.98,8.6221]
[1743713147238,14.612,115.99,115.97,42.67881312]
[1743713148034,14.612,115.99,115.98,45.39028512]
[1743713148915,14.612,115.99,115.98,26.45631312]
[1743713149337,14.612,115.99,115.98,35.07841312]
[1743713150144,14.612,115.99,115.98,54.01238512]
[1743713152912,14.612,115.99,115.97,35.07891312]
[1743713155515,14.612,115.99,115.97,8.6226]
[1743713157132,14.612,115.99,115.97,35.07891312]
[1743713157315,14.612,115.99,115.98,26.45631312]
[1743713157717,14.612,115.99,115.97,35.07891312]
[1743713159017,14.612,115.99,115.97,8.6226]
[1743713159218,14.612,115.99,115.96,35.07951312]
[1743713162532,14.612,115.99,115.96,56.63861312]
[1743713163336,14.612,115.99,115.98,26.45631312]
[1743713163533,14.612,115.99,115.98,45.39028512]
[1743713163733,14.612,115.99,115.98,52.99028512]
[1743713163734,0.0001,115.99,115.98,52.99028512]
[1743713163934,26.45631312,116.05,115.99,19.07613357]
[1743713164251,26.45631312,116.06,116.01,26.45631312]
[1743713164828,1.6573,116.08,116.02,34.05631312]
[1743713165028,26.45631312,116.07,116.02,34.05631312]
[1743713165235,20.0,116.17,116.09,26.0]
[1743713165565,8.6065,116.19,116.14,26.45631312]
[1743713165727,35.06281312,116.19,116.14,26.45631312]
[1743713165924,8.6065,116.19,116.13,26.45631312]
[1743713166122,162.45631312,116.22,116.1,7.7]
[1743713166123,20.0,116.22,116.14,15.8959]
[1743713166358,16.75788387,116.23,116.14,15.8959]
[1743713166359,26.45631312,116.2,116.14,8.1759]
[1743713166529,26.45631312,116.2,116.1,107.65631312]
[1743713166530,26.45631312,116.17,116.12,34.25631312]
[1743713167351,8.6061,116.2,116.13,35.06731312]
[1743713167528,29.3349,116.22,116.14,43.19928045]
[1743713167735,26.45631312,116.18,116.13,35.06731312]
[1743713168051,1e-08,116.18,116.14,43.19928045]
[1743713168555,26.45631312,116.18,116.14,43.19928045]
[1743713168761,26.45631312,116.18,116.13,198.71892309]
[1743713169131,26.45631312,116.22,116.14,26.45631312]
[1743713169331,26.45631312,116.19,116.15,8.6095]
[1743713169970,26.45631312,116.18,116.15,8.6095]
[1743713170142,26.45631312,116.18,116.14,5.59889449]